Cogmind - Beta 13 @@@ ROGUE MODE // 2024.04.06 @ 21:25:41 Player: Cyurio Result: Self-destructed Performance ------------- Evolutions (4) 2000 Regions Visited (10) 2000 Robots Destroyed (110) 550 Value Destroyed (2887) 2887 Prototype IDs (24) 480 Alien Tech Used (0) 0 Bonus (317) 317 TOTAL SCORE: 8234 Bonus ------- High Alert Combat Kills 17 Aligned with FarCom 300 Cogmind --------- Core Integrity 285/850 Matter 290/300 Energy 100/100 System Corruption 0% Temperature Cool (0) Movement Core (50) Location -6/Lower Caves Parts ------- > --- POWER (1) -------- (None) > --- PROPULSION (3) --- Medium Treads > --- UTILITY (8) ------ Improved Melee Analysis Suite Hacking Suite Hacking Suite Hacking Suite Hacking Suite System Guard > --- WEAPON (3) ------- (None) > --- INVENTORY (5) ---- Small Storage Unit Improved Signal Interpreter Stasis Canceller Peak State ------------ > --- POWER ------------ Light Deuterium Engine > --- PROPULSION ------- Armored Treads Armored Treads Armored Treads > --- UTILITY ---------- Large Storage Unit Signal Interpreter Advanced Targeting Computer Microactuators System Shield > --- WEAPON ----------- AWS/Gauss Katana > --- INVENTORY -------- Nuclear Core Light Nuclear Core Armored Treads Compact Wheel High-capacity Storage Unit Large Matter Pod Improved Signal Interpreter Improved Signal Interpreter Melee Analysis Suite Shield Generator Hacking Suite Hacking Suite Hacking Suite Grenade Launcher [Rating: 46] Favorites ----------- Power Light Nuclear Core Engine Light Deuterium Engine Power Core Light Nuclear Core Propulsion Armored Treads Treads Armored Treads Leg Aluminum Leg Wheel Compact Wheel Hover Unit Improved Hover Unit Utility Signal Interpreter Device Terrain Scanner Storage Large Storage Unit Processor Signal Interpreter Hackware Hacking Suite Protection Light Armor Plating Weapon Katana Ballistic Gun Assault Rifle Ballistic Cannon Light Cannon Slashing Weapon Katana Build | -11 -10 -10 -9 -9 -9 -8 -8 -7 -6 -6 ------- Run | Yrd Mat Min Mat Min Exi Min Mat Fac Fac Low Slots Evolved 8 | . . . 2 . . . 2 2 2 . Power . | . . . . . . . . . . . Propulsion 1 | . . . . . . . . 1 . . Utility 6 | . . . 2 . . . 1 1 2 . Weapon 1 | . . . . . . . 1 . . . Parts Attached 71 | . 16 . 18 2 1 . 3 18 13 . Power 9 | . 1 . 3 1 . . 1 1 2 . Engine 3 | . . . 1 1 . . 1 . . . Core 6 | . 1 . 2 . . . . 1 2 . Reactor . | . . . . . . . . . . . Propulsion 21 | . 8 . 5 . . . . 5 3 . Treads 14 | . 8 . 4 . . . . 1 1 . Leg . | . . . . . . . . . . . Wheel 2 | . . . 1 . . . . 1 . . Hover 5 | . . . . . . . . 3 2 . Flight . | . . . . . . . . . . . Utility 26 | . 3 . 4 1 . . 1 10 7 . Device 12 | . 3 . . 1 . . . 6 2 . Storage 2 | . . . 1 . . . . 1 . . Processor 4 | . . . 1 . . . 1 1 1 . Hackware 6 | . . . . . . . . 2 4 . Protection 2 | . . . 2 . . . . . . . Artifact . | . . . . . . . . . . . Weapon 15 | . 4 . 6 . 1 . 1 2 1 . Energy Gun . | . . . . . . . . . . . Energy Cannon . | . . . . . . . . . . . Ballistic Gun 11 | . 2 . 5 . 1 . 1 1 1 . Ballistic Cannon 3 | . 2 . 1 . . . . . . . Launcher . | . . . . . . . . . . . Special Weapon . | . . . . . . . . . . . Impact Weapon . | . . . . . . . . . . . Slashing Weapon 1 | . . . . . . . . 1 . . Piercing Weapon . | . . . . . . . . . . . Special Melee Weapon . | . . . . . . . . . . . Unidentified Prototypes 1 | . . . 1 . . . . . . . Parts Lost 27 | . . . 9 3 . . . 2 13 . Power 4 | . . . 1 1 . . . . 2 . Propulsion 9 | . . . 4 . . . . . 5 . Utility 9 | . . . 1 2 . . . 2 4 . Weapon 5 | . . . 3 . . . . . 2 . Highest Loss Streak 5 | . . . 4 2 . . . 1 5 . To Critical Strikes . | . . . . . . . . . . . Average Slot Usage (%) 86 | . 97 100 89 98 82 77 80 90 67 46 Engine 4 | . 8 . 1 9 11 11 9 2 . . Core 4 | . 5 14 9 1 . . . 4 2 . Treads 16 | . 26 28 20 22 22 22 18 8 2 6 Hover 3 | . . . . . . . . 10 7 . Device 11 | . 13 14 11 19 11 11 9 11 8 . Storage 9 | . 14 14 12 11 11 11 9 7 2 . Processor 8 | . . . 5 11 11 11 17 10 12 13 Hackware 6 | . . . . . . . . 14 22 26 Protection 1 | . . . 5 1 . . . . . . Ballistic Gun 12 | . 16 28 18 11 11 11 17 6 . . Ballistic Cannon 3 | . 10 . 3 11 5 . . . . . Slashing Weapon 2 | . . . . . . . . 7 5 . Naked Turns . | . . . . . . . . . . . Heaviest Build 41 | 11 16 15 40 35 37 37 38 41 19 . Greatest Support 60 | 20 40 40 40 40 40 40 40 60 28 3 Greatest Overweight (x) 4 | . 4 . 1 . . . . 2 2 . Average Overweight (x) . | . . . . . . . . . . . Largest Inventory Capacity 15 | . 8 8 15 15 15 15 15 15 8 5 Average Capacity 11 | . 8 8 14 15 15 15 15 11 6 5 Most Carried 15 | . 8 8 15 15 15 15 15 15 8 3 Average Carried 10 | . 7 8 12 13 15 14 14 11 5 3 Final Capacity 15 | 8 8 8 15 15 15 15 15 8 5 5 Final Carried 15 | 6 8 8 15 15 15 15 15 8 3 3 Class Distribution -------------------- 53% | Mutant 21% | Hacker-Mutant 15% | Scavenger-Mutant 9% | Skirmisher Dominant Class ---------------- Mutant | -10/Materials Mutant | -10/Mines Mutant | -9/Materials Mutant | -9/Mines Mutant | -9/Exiles Mutant | -8/Mines Skirmisher | -8/Materials Scavenger-Mutant | -7/Factory Hacker-Mutant | -6/Factory Hacker-Mutant | -6/Lower Caves Resources | -11 -10 -10 -9 -9 -9 -8 -8 -7 -6 -6 ----------- Run | Yrd Mat Min Mat Min Exi Min Mat Fac Fac Low Matter Collected 2111 | 200 491 . 926 145 . 10 40 184 115 . Remotely . | . . . . . . . . . . . Salvage Created 3775 | . 517 . 1314 204 . 160 420 848 312 . Parts 254 | . 32 . 82 21 . 9 32 55 23 . Haulers Intercepted 7 | . 2 . 4 . . . 1 . . . Recyclers Shooed 2 | . 1 . 1 . . . . . . . Parts Field Recycled . | . . . . . . . . . . . Retrieved Matter . | . . . . . . . . . . . Parts Self-Destructed . | . . . . . . . . . . . Prevented . | . . . . . . . . . . . Kills | -11 -10 -10 -9 -9 -9 -8 -8 -7 -6 -6 ------- Run | Yrd Mat Min Mat Min Exi Min Mat Fac Fac Low Combat Hostiles Destroyed 76 | . 11 . 28 8 . 3 7 12 7 . Melee 13 | . . . . . . . . 7 6 . Guns 50 | . 6 . 26 2 . 3 7 5 1 . Cannons 13 | . 5 . 2 6 . . . . . . Classes Destroyed 15 | . 6 . 1 2 . 2 2 2 . . Worker 5 | . . . . . . 1 . 3 1 . Builder 2 | . . . . . . . 1 1 . . Tunneler 1 | . . . . . . . . 1 . . Hauler 7 | . 2 . 4 . . . 1 . . . Recycler 6 | . 1 . 2 . . . . 3 . . Operator 6 | . 1 . 2 . . . 1 1 1 . Watcher 7 | . 2 . 1 . . . 3 1 . . Swarmer 27 | . 3 . 10 3 . . 3 4 4 . Grunt 31 | . 8 . 11 3 . 2 2 5 . . Brawler 1 | . . . . 1 . . . . . . Duelist 1 | . . . . . . 1 . . . . Protector 1 | . . . . 1 . . . . . . Sentry 10 | . . . 7 . . . 1 . 2 . Hunter 1 | . . . . . . . 1 . . . Programmer 4 | . . . . . . . . 3 1 . Best Kill Streak 7 | . 3 . 6 3 . 4 4 7 4 . Combat Bots Only 6 | . 2 . 4 3 . 3 2 6 4 . Max Kills in Single Turn 1 | . 1 . 1 1 . 1 1 1 1 . Gunslinging . | . . . . . . . . . . . Exploded . | . . . . . . . . . . . Melee 1 | . . . . . . . . 1 1 . Uniques/NPCs Destroyed . | . . . . . . . . . . . Combat | -11 -10 -10 -9 -9 -9 -8 -8 -7 -6 -6 -------- Run | Yrd Mat Min Mat Min Exi Min Mat Fac Fac Low Hostile Shots Fired 631 | . 39 . 160 60 . 9 20 63 278 2 Missed 239 | . 15 . 31 16 . 5 8 24 138 2 Damage Taken 4168 | . 253 . 1491 580 . 42 106 418 1278 . Core 1093 | . 66 . 283 56 . 11 10 102 565 . Absorbed by Shields 243 | . . . . 79 . 16 44 104 . . Core Remaining (%) 73 | 100 . 73 . . . 12 98 85 . . Volleys Fired 201 | . 48 . 113 20 . . 10 . 10 . Largest 2 | . 2 . 2 2 . . 1 . 1 . Hottest 58 | . 55 . 58 58 . . 20 . 23 . Shots Fired 460 | . 96 . 226 40 . 17 52 19 10 . Gun 381 | . 54 . 209 20 . 17 52 19 10 . Cannon 79 | . 42 . 17 20 . . . . . . Launcher . | . . . . . . . . . . . Special . | . . . . . . . . . . . Kinetic 460 | . 96 . 226 40 . 17 52 19 10 . Thermal . | . . . . . . . . . . . Explosive . | . . . . . . . . . . . Electromagnetic . | . . . . . . . . . . . Robot Hit Streak 16 | . 11 . 13 16 . 5 14 6 11 . Robot Miss Streak 4 | . 4 . 4 2 . 1 1 3 1 . Penetration Max . | . . . . . . . . . . . Secondary Targets 1 | . . . 1 . . . . . . . Max Gunslinging Chain 1 | . . . 1 . . . . . . . Autonomous 78 | . . . . . . 17 42 19 . . Shots Hit Robots 389 | . 61 . 152 30 . 13 45 56 32 . Core Hits 158 | . 27 . 58 13 . 7 17 22 14 . Critical Kills 2 | . . . 2 . . . . . . . Critical Parts Destroyed 1 | . . . . 1 . . . . . . Critical Strikes 7 | . . . 2 1 . . . 2 2 . Destroy 3 | . . . 2 1 . . . . . . Sever 4 | . . . . . . . . 2 2 . Melee Attacks 119 | . . . . . . . . 69 50 . Impact . | . . . . . . . . . . . Slashing 119 | . . . . . . . . 69 50 . Piercing . | . . . . . . . . . . . Sneak Attacks 16 | . . . . . . . . 11 5 . Combat Hostiles 1 | . . . . . . . . . 1 . Follow-up Attacks . | . . . . . . . . . . . Damage Inflicted 8291 | . 856 . 2015 517 . 415 1226 2160 1102 . Guns 4553 | . 435 . 1833 234 . 415 1155 344 137 . Cannons 852 | . 421 . 152 279 . . . . . . Explosions 71 | . . . . . . . 71 . . . Melee 2761 | . . . . . . . . 1816 945 . Ramming 54 | . . . 30 4 . . . . 20 . Kinetic 5405 | . 856 . 1985 513 . 415 1155 344 137 . Thermal 71 | . . . . . . . 71 . . . Explosive . | . . . . . . . . . . . Electromagnetic . | . . . . . . . . . . . Impact . | . . . . . . . . . . . Slashing 2761 | . . . . . . . . 1816 945 . Piercing . | . . . . . . . . . . . Highest Corruption 2 | . 2 2 . . . . . 2 2 . Average Corruption 1 | . 2 2 . . . . . 1 2 . Corruption Purged . | . . . . . . . . . . . Corruption Blocked . | . . . . . . . . . . . Effects 17 | . 12 . . . . . . 5 . . Message Errors 1 | . 1 . . . . . . . . . Matter Fused 5 | . 4 . . . . . . 1 . . Heat Flow Errors 5 | . 4 . . . . . . 1 . . Energy Discharges 2 | . 2 . . . . . . . . . Parts Rejected 1 | . 1 . . . . . . . . . Data Loss (minor) 1 | . . . . . . . . 1 . . Misfires 1 | . . . . . . . . 1 . . Alerts 1 | . . . . . . . . 1 . . Overload Shots . | . . . . . . . . . . . Overflow Damage 274 | . . . 6 . . . . 195 73 . Projectiles 6 | . . . 6 . . . . . . . Explosions . | . . . . . . . . . . . Melee 268 | . . . . . . . . 195 73 . Knockbacks 10 | . 8 . 1 1 . . . . . . Impact . | . . . . . . . . . . . Kinetic 10 | . 8 . 1 1 . . . . . . Secondary . | . . . . . . . . . . . Self-Inflicted Damage 8 | . . . . . . . . . 8 . Shots . | . . . . . . . . . . . Rammed 18 | . . . 7 2 . . . . 9 . Targets Rammed 18 | . . . 7 2 . . . . 9 . Kicked . | . . . . . . . . . . . Crushed . | . . . . . . . . . . . Highest Temperature 228 | . 228 . 60 128 . . 1 164 11 . Average Temperature 29 | . 46 . 8 77 . . 1 81 8 . Received Heat Transfer 1236 | . 108 . 531 247 . 38 30 111 171 . Siege Activations . | . . . . . . . . . . . Robots Corrupted . | . . . . . . . . . . . Combat Hostiles . | . . . . . . . . . . . Parts Fried . | . . . . . . . . . . . Impact Corruptions . | . . . . . . . . . . . Robots Melted . | . . . . . . . . . . . Combat Hostiles . | . . . . . . . . . . . Parts Melted . | . . . . . . . . . . . Heat Transferred 100 | . . . . . . . 100 . . . Parts Sabotaged . | . . . . . . . . . . . Parts Stolen . | . . . . . . . . . . . Parts Stripped . | . . . . . . . . . . . Power Chain Reactions . | . . . . . . . . . . . Alert | -11 -10 -10 -9 -9 -9 -8 -8 -7 -6 -6 ------- Run | Yrd Mat Min Mat Min Exi Min Mat Fac Fac Low Peak Influence 518 | . 237 46 518 382 . 74 336 311 211 . Initial 201 | . . 31 17 201 . . 28 107 76 . Average 142 | . 90 44 200 257 . 57 180 123 71 . Maximum Alert Level 2 | . 1 . 2 1 . . 1 1 1 . Low Security (%) 74 | . 95 100 54 25 . 100 55 85 99 . Level 1 23 | . 4 . 38 74 . . 44 14 . . Level 2 1 | . . . 6 . . . . . . . Level 3 . | . . . . . . . . . . . Level 4 . | . . . . . . . . . . . Level 5 . | . . . . . . . . . . . High Security . | . . . . . . . . . . . Max Security . | . . . . . . . . . . . Squads Dispatched 15 | . 2 . 3 1 . . 1 4 4 . Investigation 1 | . . . . . . . . . 1 . Extermination 3 | . . . . . . . . 2 1 . Reinforcement 9 | . 2 . 3 . . . 1 2 1 . Assault 1 | . . . . 1 . . . . . . Garrison 1 | . . . . . . . . . 1 . Intercept . | . . . . . . . . . . . Searches Triggered . | . . . . . . . . . . . Construction Impeded 1 | . . . . . . . . 1 . . Haulers Reinforced . | . . . . . . . . . . . Active Scanning Responses . | . . . . . . . . . . . Cargo Convoy Interrupts . | . . . . . . . . . . . Stealth | -11 -10 -10 -9 -9 -9 -8 -8 -7 -6 -6 --------- Run | Yrd Mat Min Mat Min Exi Min Mat Fac Fac Low Distress Signals 12 | . 3 . 5 . . . 1 1 2 . Communications Jammed . | . . . . . . . . . . . Distress Signals . | . . . . . . . . . . . Times Spotted 154 | . 26 1 58 11 . 3 15 19 18 3 Peak Tracking Total 7 | . 4 1 7 5 . 3 2 3 7 3 Tactical Retreats 15 | . 1 . 4 1 . . 2 2 5 . Traps | -11 -10 -10 -9 -9 -9 -8 -8 -7 -6 -6 ------- Run | Yrd Mat Min Mat Min Exi Min Mat Fac Fac Low Traps Triggered 6 | . 5 . . . . . . . 1 . Indirectly . | . . . . . . . . . . . Trap Hack Attempts . | . . . . . . . . . . . Triggered . | . . . . . . . . . . . Disarmed . | . . . . . . . . . . . Reprogrammed . | . . . . . . . . . . . Reused . | . . . . . . . . . . . Traps Extracted . | . . . . . . . . . . . Installed . | . . . . . . . . . . . Triggered . | . . . . . . . . . . . Machines | -11 -10 -10 -9 -9 -9 -8 -8 -7 -6 -6 ---------- Run | Yrd Mat Min Mat Min Exi Min Mat Fac Fac Low Machines Disabled 5 | . 1 . . . . . 2 2 . . Max in Single Turn 2 | . 1 . . . . . 2 1 . . Machines Repaired . | . . . . . . . . . . . Machines Dismantled . | . . . . . . . . . . . Machines Sabotaged . | . . . . . . . . . . . Overloaded Fab Kills . | . . . . . . . . . . . Hacking | -11 -10 -10 -9 -9 -9 -8 -8 -7 -6 -6 --------- Run | Yrd Mat Min Mat Min Exi Min Mat Fac Fac Low Machines Accessed 24 | . 4 1 5 . 1 . 2 7 4 . Terminals 17 | . 4 . 4 . . . 2 4 3 . Fabricators 2 | . . . . . . . . 1 1 . Repair Stations . | . . . . . . . . . . . Recycling Units 1 | . . . . . . . . 1 . . Scanalyzers 2 | . . . 1 . . . . 1 . . Garrison Access . | . . . . . . . . . . . Total Hacks 50 | . 9 1 12 . 1 . 5 15 7 . Successful 27 | . 5 1 7 . 1 . 3 6 4 . Failed 23 | . 4 . 5 . . . 2 9 3 . Catastrophic 3 | . . . . . . . 1 1 1 . Database Lockouts . | . . . . . . . . . . . Manual 21 | . 9 . 8 . 1 . 2 . 1 . Terminals 37 | . 9 . 8 . . . 5 9 6 . Fabricators 2 | . . . . . . . . 1 1 . Repair Stations . | . . . . . . . . . . . Recycling Units 1 | . . . . . . . . 1 . . Scanalyzers 8 | . . . 4 . . . . 4 . . Garrison Access . | . . . . . . . . . . . Terminal Hacks 12 | . . 1 1 . 1 . 2 4 3 . Part Schematic 1 | . . . . . . . . . 1 . Robot Analysis 1 | . . . . . . . . 1 . . Open Door 1 | . . 1 . . . . . . . . Open DSF 1 | . . . . . . . . 1 . . Level Access Points 2 | . . . . . . . . 1 1 . Branch Access Points 1 | . . . 1 . . . . . . . Emergency Access Points 1 | . . . . . . . . 1 . . Alert Level 2 | . . . . . . . 1 . 1 . Security Status 1 | . . . . . . . 1 . . . Derelict Proto ID Bank 1 | . . . . . 1 . . . . . Fabricator Hacks 1 | . . . . . . . . . 1 . Build 1 | . . . . . . . . . 1 . Repair Station Hacks . | . . . . . . . . . . . Recycling Unit Hacks . | . . . . . . . . . . . Scanalyzer 6 | . . . 4 . . . . 2 . . Insert Component 3 | . . . 2 . . . . 1 . . Analyze 3 | . . . 2 . . . . 1 . . Garrison Access Hacks . | . . . . . . . . . . . Unauthorized Hacks 8 | . 5 . 2 . . . 1 . . . Terminals 8 | . 5 . 2 . . . 1 . . . Assimilate 2 | . 2 . . . . . . . . . Botnet 6 | . 3 . 2 . . . 1 . . . Fabricators . | . . . . . . . . . . . Repair Stations . | . . . . . . . . . . . Recycling Units . | . . . . . . . . . . . Scanalyzers . | . . . . . . . . . . . Garrison Access . | . . . . . . . . . . . Data Cores Recovered . | . . . . . . . . . . . Used . | . . . . . . . . . . . Hacking Detections 17 | . 3 . 4 . . . 1 7 2 . Full Trace Events . | . . . . . . . . . . . Feedback Events . | . . . . . . . . . . . Feedback Blocked . | . . . . . . . . . . . Robot Schematics Acquired . | . . . . . . . . . . . Robots Built . | . . . . . . . . . . . Authchips . | . . . . . . . . . . . Time . | . . . . . . . . . . . Total Robot Build Rating . | . . . . . . . . . . . Part Schematics Acquired 3 | . . . 1 . . . . 1 1 . Parts Built 2 | . . . . . . . . . 2 . Authchips . | . . . . . . . . . . . Time 95 | . . . . . . . . . 95 . Total Part Build Rating 10 | . . . . . . . . . 10 . Parts Repaired . | . . . . . . . . . . . Time . | . . . . . . . . . . . Parts Recycled . | . . . . . . . . . . . Recycled Matter . | . . . . . . . . . . . Retrieved Matter . | . . . . . . . . . . . Retrieved Components . | . . . . . . . . . . . Parts Scanalyzed 3 | . . . 2 . . . . 1 . . Part Schematics Acquired 2 | . . . 1 . . . . 1 . . Parts Damaged . | . . . . . . . . . . . Bothacking | -11 -10 -10 -9 -9 -9 -8 -8 -7 -6 -6 ------------ Run | Yrd Mat Min Mat Min Exi Min Mat Fac Fac Low Used RIF Installer . | . . . . . . . . . . . Robots Hacked . | . . . . . . . . . . . Non-combat . | . . . . . . . . . . . Combat . | . . . . . . . . . . . Robot Hacks Applied . | . . . . . . . . . . . Relay Couplers Released . | . . . . . . . . . . . Fabnet Peak Effective % . | . . . . . . . . . . . Robots Rewired . | . . . . . . . . . . . Allies Hacked . | . . . . . . . . . . . Hacks Repelled . | . . . . . . . . . . . Allies | -11 -10 -10 -9 -9 -9 -8 -8 -7 -6 -6 -------- Run | Yrd Mat Min Mat Min Exi Min Mat Fac Fac Low Total Allies 1 | . . . . 1 . . . . . . Largest Group 1 | . . . . 1 1 1 . . . . Highest-Rated Group 31 | . . . . 31 26 26 . . . . Highest-Rated Ally 31 | . . . . 31 26 26 . . . . Total Orders . | . . . . . . . . . . . Ally Attacks 5 | . . . . 5 . . . . . . Total Damage 84 | . . . . 84 . . . . . . Kills . | . . . . . . . . . . . Allies Corrupted . | . . . . . . . . . . . Allies Melted . | . . . . . . . . . . . Intel | -11 -10 -10 -9 -9 -9 -8 -8 -7 -6 -6 ------- Run | Yrd Mat Min Mat Min Exi Min Mat Fac Fac Low Robot Analysis Total 1 | . . . . . . . . 1 . . Derelict Logs Recovered . | . . . . . . . . . . . Drone Launches . | . . . . . . . . . . . Drone Recoveries . | . . . . . . . . . . . Exploration | -11 -10 -10 -9 -9 -9 -8 -8 -7 -6 -6 ------------- Run | Yrd Mat Min Mat Min Exi Min Mat Fac Fac Low Turns Passed 7994 | . 1307 72 1889 523 357 102 740 1825 1098 81 Spaces Moved 4448 | 1 693 46 845 252 209 58 377 1076 731 160 Core 461 | . 1 . . . . . . . 300 160 Treads 2464 | . 648 46 781 252 209 58 377 90 3 . Legs 45 | 1 44 . . . . . . . . . Wheels 243 | . . . 64 . . . . 179 . . Hover 1235 | . . . . . . . . 807 428 . Flight . | . . . . . . . . . . . Fastest Speed 50 | 120 120 160 115 170 170 170 170 52 50 50 Average Speed 123 | 120 157 160 162 170 170 170 170 75 72 50 Slowest Speed 250 | 120 250 160 250 170 170 170 170 250 160 50 Overloaded Moves . | . . . . . . . . . . . Propulsion Burnouts . | . . . . . . . . . . . Robots Hopped . | . . . . . . . . . . . Cave-ins Triggered . | . . . . . . . . . . . Exploration Rate (%) 37 | 2 96 18 75 52 62 14 28 28 18 21 Regions Visited 10 Branch Regions 5 Pre-discovered Areas . | . . . . . . . . . . . Known Exits Taken 6 | . . . 1 1 1 1 1 1 . . Unknown Exits Taken 4 | 1 1 1 . . . . . . 1 . Scrap Searched . | . . . . . . . . . . . Spaces Dug 39 | . . . . . . . . 20 19 . Terrain Destroyed 111 | . . . . . . 11 52 29 19 . Melee 38 | . . . . . . . . 19 19 . Projectile 37 | . . . . . . 11 16 10 . . AOE 36 | . . . . . . . 36 . . . Terrain Rammed . | . . . . . . . . . . . Walls Destroyed . | . . . . . . . . . . . Machines Disabled . | . . . . . . . . . . . Actions | -11 -10 -10 -9 -9 -9 -8 -8 -7 -6 -6 --------- Run | Yrd Mat Min Mat Min Exi Min Mat Fac Fac Low Total 6453 | . 811 45 1146 305 211 62 470 2021 1222 160 Wait 1519 | . 36 . 151 28 . 3 73 824 404 . Move 4438 | . 692 45 844 251 208 57 376 1075 730 160 Hop . | . . . . . . . . . . . Pick Up 39 | . 8 . 8 2 . 1 4 16 . . Fast Attach 34 | . 14 . 8 . 1 . 1 5 5 . Attach 24 | . . . 7 2 . . 1 6 8 . Detach 13 | . 2 . 4 . . . . 3 4 . Swap 13 | . 2 . 3 . . . 1 7 . . Drop 35 | . 9 . 1 . 2 1 4 16 2 . Fire 201 | . 48 . 113 20 . . 10 . 10 . Melee 119 | . . . . . . . . 69 50 . Ram 9 | . . . . . . . . . 9 . Kick . | . . . . . . . . . . . Crush 9 | . . . 7 2 . . . . . . Escape Stasis . | . . . . . . . . . . . Rewire . | . . . . . . . . . . . Trap . | . . . . . . . . . . . Miscellaneous . | . . . . . . . . . . . Route ------- -11/Scrapyard -10/Materials (discovered 4 exits: *Mat x3 / *Min) -10/Mines -9/Materials (discovered 4 exits: *Mat x2 / *Min / Sto) -9/Mines (discovered 3 exits: *Mat x2 / *Exi) -9/Exiles (discovered 2 exits: *Min x2) -8/Mines -8/Materials -7/Factory (discovered 4 exits: *Fac x4) -6/Factory (discovered 5 exits: Fac x4 / [*Low]) -6/Lower Caves History --------- Turn | Location | Event 1 | -11/Scrapyard | Discovered new exit (range 0) 1 | -11/Scrapyard | Entered Materials 42 | -10/Materials | Discovered new exit (range 16) 305 | -10/Materials | Build established: Mutant 461 | -10/Materials | Discovered new exit (range 15) 642 | -10/Materials | Discovered new exit (range 10) 860 | -10/Materials | Discovered new exit (range 10) 1308 | -10/Materials | Entered Mines 1312 | -10/Mines | Joined a pair of Derelicts in attacking an 0b10 outpost 1324 | -10/Mines | Met a Derelict bent on vengeance 1331 | -10/Mines | Discovered new exit (range 8) 1361 | -10/Mines | Found the Drone Emporium 1380 | -10/Mines | Entered Materials 1380 | -9/Materials | Evolved 2 slots: Utility x2 2093 | -9/Materials | Core integrity fell below 50% 2138 | -9/Materials | Lost 4 parts (2n1u1w) 2455 | -9/Materials | Discovered new exit (range 14) 2515 | -9/Materials | Identified exit to Materials 2781 | -9/Materials | Discovered exit to Materials (range 11) 3231 | -9/Materials | Identified exit to Mines 3231 | -9/Materials | Identified exit to Storage 3269 | -9/Materials | Entered Mines 3270 | -9/Mines | Met a Derelict testing a Signal Generator 3304 | -9/Mines | Received a Rocket Launcher from a helpful Derelict 3326 | -9/Mines | Core integrity fell below 20% 3418 | -9/Mines | Discovered exit to Materials (range 10) 3689 | -9/Mines | Assembled infested the area 3726 | -9/Mines | Discovered exit to Materials (range 12) 3783 | -9/Mines | Deemed a non-threat by the Exiles lab entrance 3785 | -9/Mines | Discovered new exit (range 5) 3790 | -9/Mines | Identified exit to Exiles 3792 | -9/Mines | Entered Exiles 3792 | -9/Exiles | Accompanied by 1 ally 3820 | -9/Exiles | Discovered new exit (range 15) 3835 | -9/Exiles | Met 8R-AWN 3864 | -9/Exiles | Met EX-HEX 3910 | -9/Exiles | Met EX-BIN 3930 | -9/Exiles | Aligned with FarCom system 3932 | -9/Exiles | Given EX-Vault access code 3974 | -9/Exiles | Opened EX-Vault 3987 | -9/Exiles | Found AWS/Gauss 4023 | -9/Exiles | Warned to stay clear of 0b10 Research branches 4072 | -9/Exiles | Met EX-DEC 4133 | -9/Exiles | Discovered new exit (range 10) 4147 | -9/Exiles | Identified exit to Mines 4149 | -9/Exiles | Left Exiles lab with AWS/Gauss 4149 | -9/Exiles | Entered Mines 4149 | -8/Mines | Accompanied by 1 ally 4242 | -8/Mines | Discovered exit to Materials (range 8) 4251 | -8/Mines | Entered Materials 4251 | -8/Materials | Evolved 2 slots: Utility x1, Weapon x1 4577 | -8/Materials | Build established: Skirmisher 4670 | -8/Materials | Discovered new exit (range 16) 4748 | -8/Materials | Identified exit to Factory 4991 | -8/Materials | Entered Factory 4991 | -7/Factory | Evolved 2 slots: Propulsion x1, Utility x1 5464 | -7/Factory | Build established: Hacker-Mutant 6285 | -7/Factory | Build established: Scavenger-Mutant 6402 | -7/Factory | Identified exit to Factory 6816 | -7/Factory | Entered another Factory area 6816 | -6/Factory | Evolved 2 slots: Utility x2 6977 | -6/Factory | Garrison activated, responded to threat 7099 | -6/Factory | Lost 5 parts (1p3n1w) 7471 | -6/Factory | Identified exit to Factory 7555 | -6/Factory | Build established: Hacker-Mutant 7594 | -6/Factory | Fabricated Imp. Gravmag System (x2) 7826 | -6/Factory | Lost 3 parts (1p2u) 7893 | -6/Factory | Core integrity fell below 50% 7904 | -6/Factory | Discovered new exit (range 5) 7914 | -6/Factory | Entered Lower Caves 7928 | -6/Lower Caves | Lost 4 parts (2n1u1w) 7995 | -6/Lower Caves | Self-destructed Last Messages --------------- 07893_ Slammed into Y-54 Guardian. 07894_ Destabilizing: System corrupted (+2). 07894_ Imp. Gravmag System destroyed. 07895_ Slammed into Y-54 Guardian. 07895_ Destabilizing: System interference. 07895_ Signal Interpreter temporarily disabled. 07896_ Slammed into Y-54 Guardian. 07897_ Signal Interpreter destroyed. 07898_ Slammed into Y-54 Guardian. 07899_ Destabilizing: Core damaged (-17). 07904_ EXIT=FOUND 07907_ Acquired System Guard. 07909_ ALERT: Cargo convoy en route, clear transfer corridor. 07911_ Triggered Alarm Trap. 07911_ An alarm sounds. 07911_ ALERT: Alarm triggered, dispatching investigation squad. LOCATION=UNKNOWN GOAL=ESCAPE Map ----- +----------------------------------------------------+ | | | | | | | | | | | ?????????????????????????????????????????????????? | | ?????????????????????????????????????????????????? | | ?????????????????????????????????????????????????? | | ?????????????????????????????????????????????????? | | ?????????????????????????????????????????????????? | | ?????????????????????????????????????????????????? | | ?????????????????????????????????????????????????? | | ?????????????????????????????????????????????????? | | ?????????????????????????????????????????????????? | | ?????????????????????????????????????????????????? | | ?????????????????????????????????????????????????? | | ?????????????????????????????????????????????????? | | ?????????????????????????????????????????????????? | | ?????????????????????????????????????????????????? | | ?????????????????????????????####????????????????? | | ????????????#???????????????## ###???######??#### | | ??????????? ???????????# #???# #### | | ?????????????? ???#####?# #????# | | ?????????? ## ## ### #????## | | ?????????? ## ###????# | | ?????????? @ ######## # | | ?????????? ## | | ?????????????# ## ## ## | | ?????????????# #### ######## ### | | ????????????# #???###??????# #### | | ???????????? #?????????????# ### | | ???????????? #??????????????# ## ## | | ???????????? #???????????????#### ## | | ?????????????# #????????????#??????## # | | ?????????????##s #???????????## ????#?# | | ??????????????##s #???????????## ???# ### | | ???????????????# ????????????# ???# ### | | ????????????????s????????????## ???# ## | | ?????????????????????????????# ??# | | ?????????????????????????????# ??# | | ?????????????????????????????# ?## | | ????????????????????????# ????# ## | | ????????????????????????# ### | | ???????????????????????? | | ??????????????????????????? ## | | ?????????????????????????????? ## | | ?????????????????????????????????# | | ?????????????????????????????????# ## | | ?????????????????????????????????## ##### | | ??????????????????????????????????###### ##??## | +----------------------------------------------------+ Best States ------------- Heat Dissipation 37 Energy Generation 15 Energy Capacity 280 Matter Stores 300 Matter Capacity 300 Sight Range 16 Robot Scan Range 15 Terrain Scan Range 14 Terrain Scan Density 10 Jamming Range 12 Corruption Containment 8 Armor Coverage 150 Melee Speed Boost 20 Evasion (%) 55 Targeting Accuracy 8 Melee Accuracy 6 Recoil Reduction 3 Offensive Hacking 40 Defensive Hacking 10 Item Schematics ----------------- Signal Interpreter | -9/Materials | Scanalyzed Hacking Suite | -7/Factory | Scanalyzed Coil Gun | -6/Factory | Hacked Robot Schematics ------------------ None Fabricated ------------ Imp. Gravmag System | x2 | -6/Factory | Preloaded Alien Tech Used ----------------- None Achievements -------------- None Challenges ------------ None Game ------ Seed AlphaSurveybotBay Manual? 0 Play Time 01:01:47 Cumulative 99.2 hours Start 2024.04.06 @ 19:44:57 End 2024.04.06 @ 21:25:41 Sessions 1 Manual Loads 0 Difficulty Rogue Special Mode None Game No. 145 Rogue 145 Adventurer 0 Explorer 0 Win Type - Total 1 Types 1/0/0/0/0/0/0/0/0 Lore% 43 Gallery% 47 Achievement% 41 Wizard Run 0 Options --------- Layout 2 ASCII 0 Keyboard 1 Movement Vi Keybinds 1 Fullscreen 1 Font 32/SmallcapsGlow Map View 50x44 Zoom Use 0% Tactical HUD 1 Map Filters NONE Filters NONE Steam 1 RUN: e39fdf0d-92fd-487e-93c2-06ecea790152